bitfinex-derivatives/quotes_ETHF0:USTF0_20240910
["timestamp","ask_amount","ask_price","bid_price","bid_amount"]
[1725963943087,2.66824221,2349.8,2349.6,0.42558]
[1725963943389,1.56115,2349.8,2349.6,0.42558]
[1725963943586,0.42556,2349.7,2349.3,3.032]
[1725963943792,0.42556,2349.7,2349.6,0.42558]
[1725963943982,1.1356,2349.8,2349.7,0.42556]
[1725963944385,1.1356,2349.8,2349.4,2.66]
[1725963944582,0.42557,2349.7,2349.5,0.42559]
[1725963944787,0.42556,2349.7,2349.5,0.42559]
[1725963944995,1.06401,2349.5,2349.1,0.099]
[1725963945299,1.06413,2349.2,2348.8,4.181]
[1725963945483,1.06413,2349.2,2348.6,0.099]
[1725963945484,3.0638,2349.1,2348.6,0.099]
[1725963945681,0.4257,2349.0,2348.8,0.42572]
[1725963945880,0.7759,2348.9,2348.8,0.42572]
[1725963949490,0.7759,2348.9,2348.7,0.79123]
[1725963949695,0.7759,2348.9,2348.8,0.42572]
[1725963949987,0.7759,2348.9,2348.7,0.79123]
[1725963950392,0.7759,2348.9,2348.7,0.42573]
[1725963950991,0.7759,2348.9,2348.4,3.13461318]
[1725963951189,0.7759,2348.9,2348.7,0.42573]
[1725963951389,0.7759,2348.9,2348.6,0.42576]
[1725963951893,2.30871221,2348.9,2348.6,0.42576]
[1725963952589,2.30871221,2348.9,2348.7,0.42574]
[1725963952796,1.20162,2348.9,2348.7,0.42574]
[1725963954201,0.7759,2348.9,2348.7,0.42574]
[1725963954404,1.20161,2348.9,2348.7,0.42574]
[1725963954605,0.7759,2348.9,2348.7,0.42574]
[1725963954798,1.20161,2348.9,2348.7,0.42574]
[1725963955412,0.7759,2348.9,2348.7,0.42574]
[1725963955596,0.7759,2348.9,2348.8,0.42572]
[1725963955804,0.7759,2348.9,2348.7,0.42573]
[1725963956900,1.20161,2348.9,2348.7,0.42573]
[1725963958096,1.10709221,2349.0,2348.9,0.4257]
[1725963958294,1.89449221,2349.1,2348.9,0.4257]
[1725963958701,0.7874,2349.1,2349.0,0.42569]
[1725963959105,0.3995,2349.2,2349.1,0.42567]
[1725963959495,1.50659221,2349.2,2349.1,0.42567]
[1725963960395,1.10709221,2349.2,2349.1,0.42567]
[1725963960706,1.50889221,2349.4,2349.2,0.42565]
[1725963961107,1.50889221,2349.4,2349.3,0.42563]
[1725963961300,1.50889221,2349.4,2349.1,1.0156922]
[1725963961301,0.4018,2349.4,2349.1,1.0156922]
[1725963961500,1.50889221,2349.4,2349.3,0.42563]
[1725963961709,1.50889221,2349.4,2349.2,0.42564]
[1725963961901,1.50889221,2349.4,2349.3,0.42563]
[1725963963202,1.10709221,2349.4,2349.3,0.42563]
[1725963963509,1.11044767,2349.5,2349.4,0.42561]
[1725963963809,1.85904767,2349.6,2349.5,0.4256]
[1725963964604,1.85904767,2349.6,2349.4,0.4256]
[1725963966000,1.11044767,2349.5,2349.4,0.4256]
[1725963966203,1.85904767,2349.6,2349.4,0.4256]
[1725963966401,1.85904767,2349.6,2349.5,0.4256]
[1725963967204,0.7486,2349.6,2349.5,0.4256]
[1725963969205,0.7486,2349.6,2349.5,0.8019]
[1725963969823,1.17419,2349.6,2349.2,2.66]
[1725963970108,1.11044767,2349.5,2348.9,1.20907541]
[1725963970307,1.11044767,2349.5,2349.1,0.42566]
[1725963970308,1.53608767,2349.3,2349.1,0.42566]
[1725963970504,1.22366,2349.2,2348.8,3.4389]
[1725963970711,0.3886,2349.1,2349.0,0.42568]
[1725963971107,0.3886,2349.1,2348.8,2.66]
[1725963971311,1.49904767,2349.1,2348.6,3.4626]
[1725963971511,1.49904767,2349.1,2348.9,0.4257]
[1725963972412,1.49904767,2349.1,2348.6,45.70839099]
[1725963972612,1.49904767,2349.1,2348.7,0.66546269]
[1725963972813,1.49904767,2349.1,2348.9,0.4257]
[1725963973014,1.49904767,2349.1,2349.0,0.42569]
[1725963973319,0.3886,2349.1,2349.0,0.42569]
[1725963973815,0.3886,2349.1,2348.9,0.4257]
[1725963974018,1.49904767,2349.1,2348.9,0.4257]
[1725963974413,1.49904767,2349.1,2348.8,2.66]
[1725963974614,1.49904767,2349.1,2348.9,0.4257]
[1725963978219,1.92471767,2349.1,2348.8,0.42571]
[1725963978417,1.92471767,2349.1,2348.9,0.4257]
[1725963979326,1.49904767,2349.1,2349.0,0.42569]
[1725963979624,0.3886,2349.1,2348.9,0.4257]
[1725963979815,1.11111294,2349.0,2348.9,0.4257]
[1725963980019,3.88509135,2349.3,2348.9,8.6472316]
[1725963980020,1.16231294,2349.2,2348.9,8.6472316]
[1725963980321,1.1512,2349.2,2349.1,0.42567]
[1725963981018,1.66063832,2349.5,2349.3,0.42562]
[1725963981218,0.779,2349.4,2349.3,0.42563]
[1725963981723,2.43963832,2349.4,2349.3,0.42563]
[1725963982718,2.43963832,2349.4,2349.2,0.42564]
[1725963982922,2.86525832,2349.4,2349.2,0.42564]
[1725963983219,2.43963832,2349.4,2349.2,0.42564]
[1725963983421,2.43963832,2349.4,2349.3,0.42563]
[1725963984029,2.43963832,2349.4,2349.1,0.3806]
[1725963984030,2.43963832,2349.4,2349.2,0.42564]
[1725963985717,2.43963832,2349.4,2349.3,0.42563]
[1725963986629,0.779,2349.4,2349.3,0.42563]
[1725963986818,0.779,2349.4,2349.3,1.09099374]
[1725963987016,0.779,2349.4,2349.2,0.42565]
[1725963987225,2.43963832,2349.4,2349.2,0.42565]
[1725963987427,2.86525832,2349.4,2349.1,0.3806]
[1725963987731,2.43963832,2349.4,2349.2,1.09101642]
[1725963987925,2.43963832,2349.4,2349.2,0.42564]
[1725963988124,1.66063832,2349.3,2349.2,0.42565]
[1725963988332,2.43963832,2349.4,2349.3,0.42563]
[1725963988829,0.779,2349.4,2349.3,1.09098455]
[1725963989232,2.43963832,2349.4,2349.3,1.09098455]
[1725963989428,2.43963832,2349.4,2349.3,0.42563]
[1725963989628,2.43963832,2349.4,2349.2,0.42564]
[1725963989827,2.43963832,2349.4,2349.3,0.42563]
[1725963990335,2.43963832,2349.4,2349.3,1.09100852]
[1725963991127,2.43963832,2349.4,2349.3,0.42563]
[1725963991128,2.44670598,2349.4,2349.3,0.42563]
[1725963991435,2.44663019,2349.4,2349.3,0.42563]
[1725963991735,7.26025303,2349.4,2349.1,0.42567]
[1725963992029,7.26025303,2349.4,2348.7,2.82847312]
[1725963992030,2.22445303,2349.2,2348.7,0.52473]
[1725963992230,1.6674888,2348.9,2348.4,1.61307541]
[1725963992426,2.8901188,2348.8,2348.5,1.73044524]
[1725963992626,2.66,2348.7,2348.2,1.11007541]
[1725963992825,2.66,2348.7,2348.3,0.66559618]
[1725963992826,0.42578,2348.5,2348.3,0.66559618]
[1725963993021,1.6674888,2348.5,2348.3,0.42581]
[1725963993221,0.4048,2348.4,2348.3,0.42581]
[1725963993628,2.0560888,2348.6,2348.5,0.42578]
[1725963993822,0.3886,2348.6,2348.5,0.42578]
[1725963994527,0.3886,2348.6,2348.5,1.09133729]
[1725963994935,0.3886,2348.6,2348.5,1.09133301]
[1725963995323,2.4643888,2348.8,2348.5,0.66555301]
[1725963995529,2.4643888,2348.8,2348.6,0.42575]
[1725963995728,0.7969,2348.8,2348.6,0.42575]
[1725963996033,2.4643888,2348.8,2348.6,0.42575]
[1725963996240,0.7969,2348.8,2348.6,0.42575]
[1725963996536,0.7969,2348.8,2348.7,0.42574]
[1725963996842,0.7969,2348.8,2348.6,0.42575]
[1725963997025,0.7969,2348.8,2348.7,0.42574]
[1725963997332,0.7969,2348.8,2348.4,0.7999]
[1725963997635,0.7969,2348.8,2348.7,0.42574]
[1725963998130,2.0697888,2349.0,2348.8,0.42572]
[1725963998325,1.6674888,2348.9,2348.8,0.42572]
[1725963998525,0.4023,2349.0,2348.8,0.42572]
[1725963998526,2.0697888,2349.0,2348.8,0.42572]
[1725963999127,2.0697888,2349.0,2348.6,0.3782]
[1725963999346,2.0697888,2349.0,2348.8,0.42571]
[1725963999534,2.0697888,2349.0,2348.9,0.4257]
[1725963999731,1.6674888,2349.0,2348.9,0.4257]
[1725964000941,1.1615,2349.1,2349.0,0.42569]
[1725964001141,1.1615,2349.1,2348.9,0.4257]
[1725964001442,1.1615,2349.1,2348.7,2.66]
[1725964001443,1.1615,2349.1,2349.0,0.42569]
[1725964001737,1.6674888,2349.2,2349.1,0.42567]
[1725964001945,1.6674888,2349.3,2349.2,0.42565]
[1725964003339,1.6674888,2349.4,2349.2,4.68244]
[1725964003542,1.6674888,2349.4,2349.2,0.42564]
[1725964004940,1.6674888,2349.3,2349.1,3.08566]
[1725964005827,1.6674888,2349.3,2348.9,3.79884049]
[1725964006033,1.6674888,2349.3,2349.2,0.42565]
[1725964008044,2.0931088,2349.4,2349.2,0.42565]
[1725964009539,1.6674888,2349.3,2349.2,0.42565]
[1725964009739,1.6674888,2349.4,2349.2,0.42565]
[1725964009940,1.6674888,2349.3,2349.2,0.42565]
[1725964012546,1.6674888,2349.3,2348.9,3.79884049]
[1725964012742,1.6674888,2349.3,2349.0,0.66538921]
[1725964013045,1.6674888,2349.3,2349.2,0.42565]
[1725964014144,1.6674888,2349.3,2349.0,0.20984232]
[1725964014334,1.6674888,2349.3,2348.9,0.4033]
[1725964014335,2.4752488,2349.2,2348.9,0.4033]
[1725964014535,0.7703,2349.1,2349.0,0.42568]
[1725964014749,0.7703,2349.1,2349.0,1.09112328]
[1725964016345,0.3821,2349.2,2349.1,0.42567]
[1725964016652,0.3821,2349.2,2349.1,1.09111328]
[1725964017848,0.3821,2349.2,2348.9,5.61821541]
[1725964017849,1.6674888,2349.3,2349.2,0.42565]
[1725964018048,2.22445303,2349.4,2349.3,0.42563]
[1725964018049,2.0576888,2349.4,2349.3,0.42563]
[1725964018256,2.0576888,2349.4,2349.3,41.89101592]
[1725964019353,2.0576888,2349.4,2349.3,1.09101592]
[1725964019855,0.3902,2349.4,2349.3,1.09101592]
[1725964020849,0.3902,2349.4,2349.3,0.42563]
[1725964021146,2.0576888,2349.4,2349.3,1.0909754]
[1725964021850,2.4832988,2349.4,2349.3,0.6653454]
[1725964022058,0.3902,2349.4,2349.3,0.42563]
[1725964022251,2.05817113,2349.4,2349.3,0.42563]
[1725964022457,2.05817113,2349.4,2348.9,4.90788778]
[1725964022756,1.66799219,2349.2,2349.1,0.42567]
[1725964022948,1.66799219,2349.2,2348.9,0.4257]
[1725964022949,2.09366219,2349.2,2348.9,0.4257]
[1725964023150,2.44751883,2349.1,2349.0,0.66547077]
[1725964023345,2.44751883,2349.1,2349.0,1.09116077]
[1725964023958,2.44751883,2349.1,2349.0,0.66547077]
[1725964024257,2.44751883,2349.1,2349.0,1.09116077]
[1725964024456,0.7797,2349.1,2349.0,1.09116077]
[1725964025155,2.44751883,2349.1,2349.0,1.09116077]
[1725964025462,2.44751883,2349.1,2349.0,1.09114321]
[1725964026456,0.7797,2349.1,2349.0,1.09114321]
[1725964026767,0.3963,2349.1,2349.0,4.81576649]
[1725964026969,0.3963,2349.1,2349.0,3.08569]
[1725964027355,0.3963,2349.1,2349.0,5.19280362]
[1725964027653,2.05281883,2349.3,2349.0,9.02391362]
[1725964027861,1.66781883,2349.3,2349.2,3.08565]
[1725964028065,1.66781883,2349.4,2349.3,0.42563]
[1725964028360,1.66781883,2349.4,2349.3,1.09101985]
[1725964028562,1.66781883,2349.5,2349.3,1.09101985]
[1725964028760,1.66781883,2349.5,2349.3,0.42563]
[1725964028956,0.04753925,2349.4,2349.3,0.42563]
[1725964029159,0.04753925,2349.4,2349.3,1.09097186]
[1725964029457,0.04753925,2349.4,2349.3,0.42563]
[1725964029458,1.71535808,2349.4,2349.3,0.42563]
[1725964029661,1.71535808,2349.4,2349.3,1.09098698]
[1725964030365,1.71535808,2349.4,2349.3,1.09097663]
[1725964031757,0.04753925,2349.4,2349.3,1.09097663]
[1725964032859,1.71535808,2349.4,2349.3,1.09097663]
[1725964033260,2.14096808,2349.4,2349.3,0.66534663]
[1725964033565,2.14096808,2349.4,2349.0,0.42567]
[1725964033566,0.42565,2349.3,2349.0,0.42567]
[1725964033753,1.66697745,2349.2,2349.0,0.42567]
[1725964033957,1.66697745,2349.2,2349.1,0.37813075]
[1725964034156,1.66697745,2349.2,2349.1,1.04354962]
[1725964034460,0.42567,2349.1,2348.7,1.95497541]
[1725964034661,2.09265745,2349.1,2348.8,1.73017668]
[1725964034854,0.42569,2349.0,2348.9,0.66545257]
[1725964035265,2.09265745,2349.1,2348.9,1.09115257]
[1725964035461,1.66697745,2349.0,2348.9,0.4257]
[1725964035660,2.09265745,2349.1,2348.9,0.6654886]
[1725964035869,2.09265745,2349.1,2348.9,0.42569]
[1725964036170,1.66697745,2349.1,2349.0,0.42569]
[1725964036467,1.66697745,2349.1,2349.0,1.09113708]
[1725964036667,5.92377745,2349.1,2349.0,0.42569]
[1725964037163,2.64829661,2349.2,2349.0,0.42569]
[1725964037367,1.66625594,2349.1,2349.0,0.42569]
[1725964037666,1.66626528,2349.1,2349.0,0.42569]
[1725964037864,5.92306528,2349.1,2349.0,0.42569]
[1725964038067,1.66626528,2349.1,2349.0,0.42569]
[1725964039069,1.66626528,2349.1,2349.0,1.09113244]
[1725964039267,1.66626528,2349.1,2349.0,0.42569]
[1725964039471,2.64829661,2349.2,2349.0,1.09113961]
[1725964039661,1.66677129,2349.1,2349.0,0.42569]
[1725964039864,2.64829661,2349.2,2349.0,1.09113937]
[1725964040060,2.64829661,2349.2,2349.0,0.42569]
[1725964041070,2.22263661,2349.1,2349.0,0.42569]
[1725964041264,2.22263661,2349.1,2349.0,1.09114447]
[1725964041460,2.64829661,2349.2,2349.0,1.09114447]
[1725964041660,2.64829661,2349.2,2349.1,1.09112447]
[1725964042272,2.64829661,2349.2,2349.1,0.66545447]
[1725964042667,0.42566,2349.2,2349.1,0.66545447]
[1725964043371,3.19033767,2349.2,2349.0,0.42567]
[1725964043577,2.22320399,2349.1,2349.0,0.42567]
[1725964043765,3.19033767,2349.2,2349.0,1.09114316]
[1725964043965,3.19033767,2349.2,2349.0,0.42567]
[1725964044479,2.22331519,2349.1,2349.0,0.42567]
[1725964044671,2.22331519,2349.1,2349.0,1.09113558]
[1725964045780,2.22331519,2349.1,2349.0,2.15586786]
[1725964046981,2.22331519,2349.1,2349.0,0.42567]
[1725964047280,2.22331519,2349.1,2349.0,2.15583376]
[1725964050177,2.22331519,2349.1,2349.0,1.0911176]
[1725964050382,2.22331519,2349.1,2349.0,2.15584914]
[1725964053882,2.22331519,2349.1,2349.0,1.09113092]
[1725964054385,2.22331519,2349.1,2349.0,2.15586674]
[1725964054578,2.22331519,2349.1,2349.0,1.09113092]
[1725964055690,2.22331519,2349.1,2349.0,2.15585348]
[1725964057181,2.22331519,2349.1,2349.0,1.09112435]
[1725964057588,2.22331519,2349.1,2349.0,2.15585451]
[1725964058193,2.22331519,2349.1,2349.0,1.09112435]
[1725964058389,2.22331519,2349.1,2349.0,2.15586338]
[1725964058791,2.22331519,2349.2,2349.1,0.42567]
[1725964058992,2.64896519,2349.2,2349.1,1.09112435]
[1725964059193,2.64842701,2349.2,2349.1,1.09112435]
[1725964059399,2.22277701,2349.2,2349.1,1.09112435]
[1725964059789,2.22277701,2349.2,2349.1,7.64258233]
[1725964059995,2.22277701,2349.3,2349.2,1.48978]
[1725964060191,0.7567,2349.6,2349.3,2.55381]
[1725964060192,1.66724534,2349.4,2349.3,2.55381]
[1725964060387,3.18876234,2349.7,2349.4,1.06404]
[1725964060692,2.22277701,2349.9,2349.8,0.42554]
[1725964060898,2.22277701,2349.9,2349.8,1.09077769]
[1725964061192,2.22277701,2349.9,2349.8,0.66522252]
[1725964061589,2.22277701,2350.0,2349.8,41.46522252]
[1725964061791,2.22277701,2349.9,2349.8,40.8]
[1725964064194,2.22277701,2349.9,2349.8,0.42554]
[1725964064399,2.64828701,2350.0,2349.8,0.42554]
[1725964066494,0.42552,2349.9,2349.7,0.42554]
[1725964066792,2.64829701,2350.0,2349.8,0.42554]
[1725964066990,0.42553,2349.9,2349.7,0.42555]
[1725964067193,2.22277701,2349.9,2349.8,0.42554]
[1725964067396,2.22277701,2350.0,2349.8,0.42554]
[1725964067594,3.77117701,2350.1,2349.9,0.42552]
[1725964068193,3.77117701,2350.1,2349.7,0.4017]
[1725964068392,4.40941701,2350.1,2349.7,0.4017]
[1725964068595,0.42552,2350.0,2349.8,0.42554]
[1725964069895,0.42552,2350.0,2349.9,0.42552]
[1725964070298,0.42552,2350.0,2349.8,0.42553]
[1725964070504,2.64829701,2350.0,2349.8,0.42553]
[1725964074005,2.22277701,2350.0,2349.8,0.42553]
[1725964074208,2.64829701,2350.0,2349.8,0.42553]
[1725964075207,0.42552,2349.9,2349.7,0.42555]
[1725964075904,2.22277701,2350.0,2349.5,41.57066887]
[1725964076110,0.42553,2349.9,2349.7,0.42556]
[1725964076512,0.42552,2350.0,2349.8,0.42553]
[1725964076816,3.34567701,2350.1,2349.9,0.42551]
[1725964077014,3.34567701,2350.1,2350.0,0.42551]
[1725964077210,0.7497,2350.1,2350.0,0.42551]
[1725964078307,0.3755,2350.3,2350.2,0.42547]
[1725964079303,0.3755,2350.3,2350.1,0.42548]
[1725964079718,0.3755,2350.3,2350.2,0.42547]
[1725964080510,0.80096,2350.3,2350.1,0.42547]
[1725964080705,0.3755,2350.3,2350.1,0.42547]
[1725964080920,0.42552,2350.0,2349.6,0.099]
[1725964081116,0.743,2349.9,2349.8,0.42554]
[1725964081519,0.42547,2350.2,2349.8,4.2552]
[1725964081713,1.16847,2350.2,2350.1,0.42549]
[1725964081917,0.743,2350.2,2349.9,0.7736]
[1725964082110,1.16847,2350.2,2350.1,0.42549]
[1725964083322,0.743,2350.2,2350.1,0.42549]
[1725964084314,1.16847,2350.2,2350.1,0.42549]
[1725964085029,1.16847,2350.2,2350.0,0.79619]
[1725964085321,1.16847,2350.2,2350.0,0.42549]
[1725964086119,0.42549,2350.1,2350.0,0.42549]
[1725964086316,1.16848,2350.2,2350.1,0.42549]
[1725964086515,0.743,2350.2,2349.9,0.7736]
[1725964086821,1.16848,2350.2,2350.1,0.42549]
[1725964087122,0.743,2350.2,2349.9,0.7736]
[1725964087317,1.16848,2350.2,2350.1,0.42549]
[1725964087715,3.68177701,2350.4,2350.3,0.42545]
[1725964087716,2.22277701,2350.4,2350.3,0.42545]
[1725964087919,1.16252,2350.6,2350.3,0.42545]
[1725964087920,0.42543,2350.5,2350.3,0.42545]
[1725964088224,2.22277701,2350.6,2350.4,0.42543]
[1725964088413,0.42543,2350.5,2350.3,0.42544]
[1725964088615,0.42543,2350.5,2350.1,2.66]
[1725964088815,0.42542,2350.5,2350.3,0.42545]
[1725964089438,2.64818701,2350.6,2350.4,0.42543]
[1725964089632,0.42542,2350.5,2350.3,0.42544]
[1725964089936,0.42545,2350.3,2350.1,0.42547]
[1725964090134,0.80167,2350.2,2350.0,0.80759]
[1725964090433,1.16977,2350.2,2350.1,0.42549]
[1725964090935,0.7443,2350.2,2350.1,0.42549]
[1725964091326,1.54767,2350.2,2350.1,0.42549]
[1725964091527,1.1222,2350.2,2350.1,0.42549]
[1725964092937,1.54767,2350.2,2350.1,0.42549]
[1725964093132,1.1222,2350.2,2350.1,0.42549]
[1725964093331,1.54767,2350.2,2349.9,3.046]
[1725964094036,1.54767,2350.2,2350.1,0.42549]
[1725964097128,1.1222,2350.2,2350.1,0.42549]
[1725964098152,0.42544,2350.4,2350.3,0.42544]
[1725964098642,2.23435,2350.5,2350.2,0.42546]
[1725964098842,0.42543,2350.4,2350.2,0.42546]
[1725964099041,0.42543,2350.4,2350.3,0.42545]
[1725964100044,0.42545,2350.3,2350.2,0.42547]
[1725964100241,0.42547,2350.2,2350.1,0.42547]
[1725964100429,0.42548,2350.2,2350.1,0.42548]
[1725964100629,0.4255,2350.1,2350.0,0.4255]
[1725964100836,1.5515,2350.1,2350.0,0.4255]
[1725964101039,2.65916395,2350.1,2350.0,0.4255]
[1725964102442,0.42552,2350.0,2349.9,0.42552]
[1725964102929,1.5515,2350.1,2350.0,0.42551]
[1725964103541,1.171,2350.1,2350.0,0.42551]
[1725964104437,3.39377701,2350.1,2350.0,0.42551]
[1725964104947,3.39377701,2350.1,2350.0,1.09069174]
[1725964105134,3.39377701,2350.1,2350.0,0.42551]
[1725964105329,3.39377701,2350.1,2350.0,1.09069568]
[1725964105330,2.96827701,2350.1,2350.0,1.09069568]
[1725964106137,2.22277701,2350.1,2350.0,1.09069568]
[1725964106444,4.98745468,2350.3,2350.0,4.92038568]
[1725964106645,4.98745468,2350.3,2350.2,0.42547]
[1725964106646,2.22277701,2350.3,2350.2,0.42547]
[1725964106846,2.76467767,2350.5,2350.3,0.42545]
[1725964106847,2.22277701,2350.4,2350.3,0.42545]
[1725964107143,2.22277701,2350.4,2350.3,1.09063568]
[1725964107345,2.22277701,2350.4,2350.3,5.34503568]
[1725964108034,2.22277701,2350.5,2350.4,0.42543]
[1725964108237,2.22277701,2350.5,2350.4,1.09049024]
[1725964109436,2.22277701,2350.6,2350.5,0.42542]
[1725964109636,2.22277701,2350.6,2350.5,1.09048024]
[1725964109845,2.22277701,2350.6,2350.5,1.48088024]
[1725964110036,2.22277701,2350.6,2350.5,8.39528024]
[1725964110235,2.61787701,2350.8,2350.5,8.36833]
[1725964110437,2.22277701,2350.8,2350.7,0.42538]
[1725964110643,2.22277701,2350.9,2350.8,0.42536]
[1725964111046,2.22277701,2350.9,2350.6,3.0335]
[1725964111241,1.10977949,2350.7,2350.6,3.4589]
[1725964111447,1.10977949,2350.7,2350.6,44.92385888]
[1725964111643,1.10977949,2350.7,2350.6,49.17825888]
[1725964111847,1.10977949,2350.7,2350.6,50.24217333]
[1725964112046,1.10977949,2350.8,2350.7,0.42538]
[1725964112244,1.10977949,2350.8,2350.7,1.09033888]
[1725964112437,1.10977949,2350.8,2350.7,5.34393888]
[1725964113945,1.10977949,2350.8,2350.7,4.67898]
[1725964114251,1.10977949,2350.8,2350.7,5.3439193]
[1725964114452,1.10977949,2350.8,2350.7,4.67898]
[1725964114961,1.10977949,2350.8,2350.7,5.34392658]
[1725964115144,1.10977949,2350.8,2350.7,5.34392331]
[1725964115454,1.10977949,2350.9,2350.8,0.42536]
[1725964115746,0.42535,2350.9,2350.7,0.42536]
[1725964115952,1.1089476,2350.8,2350.7,0.42536]
[1725964116156,2.64813701,2350.8,2350.7,4.67896]
[1725964116352,2.64813701,2350.8,2350.6,40.8]
[1725964116353,0.42538,2350.7,2350.6,40.8]
[1725964116552,0.4254,2350.6,2350.5,0.42541]
[1725964116758,0.4254,2350.6,2350.4,0.42542]
[1725964116958,0.4254,2350.6,2350.3,0.3885]
[1725964117258,0.4254,2350.6,2350.3,0.81395]
[1725964117259,1.10816812,2350.4,2350.3,0.81395]
[1725964117454,1.10816812,2350.5,2350.4,0.42543]
[1725964117752,3.39866701,2350.7,2350.5,0.4254]
[1725964118254,2.22277701,2350.6,2350.5,0.4254]
[1725964118551,2.22277701,2350.6,2350.5,4.6798]
[1725964118857,2.59687701,2350.7,2350.6,0.4254]
[1725964119053,3.02225701,2350.7,2350.6,0.4254]
[1725964119247,2.64815701,2350.7,2350.6,0.4254]
[1725964119457,2.22277701,2350.7,2350.6,4.6798]
[1725964119756,0.3817,2350.8,2350.7,0.42538]
[1725964119945,2.59656328,2350.8,2350.7,0.42538]
[1725964120149,3.02192328,2350.8,2350.7,0.42538]
[1725964120556,3.02192328,2350.8,2350.6,0.42538]
[1725964120853,2.21486328,2350.7,2350.6,0.42538]
[1725964122851,2.64022328,2350.8,2350.6,0.4254]
[1725964123054,1.53280177,2350.8,2350.7,0.42538]
[1725964123261,2.26534177,2350.9,2350.8,0.42536]
[1725964123461,1.88144177,2350.9,2350.8,0.42536]
[1725964123756,0.774,2350.9,2350.8,0.42536]
[1725964124061,0.774,2350.9,2350.8,1.65536]
[1725964124354,0.774,2350.9,2350.6,1.6216]
[1725964124561,1.88144177,2350.9,2350.5,0.42542]
[1725964124752,2.17085177,2350.8,2350.5,0.42542]
[1725964124955,1.47814177,2350.7,2350.5,0.42542]
[1725964125154,0.4254,2350.6,2350.5,0.42542]
[1725964125358,0.42542,2350.5,2350.4,0.42543]
[1725964125552,1.20012,2350.5,2350.4,0.66503429]
[1725964126056,1.0636,2350.4,2350.1,0.42548]
[1725964126255,0.42547,2350.2,2350.1,0.42548]
[1725964126960,0.79616,2350.3,2350.2,0.42547]
[1725964127264,0.3707,2350.3,2350.1,0.42548]
[1725964127456,1.47835516,2350.3,2350.2,0.42547]
[1725964127759,0.42544,2350.4,2350.3,0.42545]
[1725964127961,1.53309516,2350.4,2350.3,0.42545]
[1725964129658,1.10765516,2350.4,2350.3,0.42545]
[1725964129862,2.68358516,2350.5,2350.3,0.42545]
[1725964130166,2.68358516,2350.5,2350.4,0.42543]
[1725964130764,0.42543,2350.4,2350.3,0.42544]
[1725964130961,0.42543,2350.4,2350.1,3.4384]
[1725964130962,2.68358516,2350.5,2350.4,0.42543]
[1725964132069,2.25815516,2350.5,2350.3,0.42544]
[1725964132273,0.42543,2350.4,2350.3,0.42544]
[1725964132460,2.68358516,2350.5,2350.3,1.09049942]
[1725964132666,2.68358516,2350.5,2350.3,0.42544]
[1725964132963,2.25815516,2350.5,2350.3,0.42544]
[1725964133166,0.42543,2350.4,2350.3,0.42544]
[1725964133555,2.25815516,2350.5,2350.3,0.42544]
[1725964133754,0.42545,2350.4,2350.2,0.42546]
[1725964133966,0.42545,2350.4,2350.3,0.42545]
[1725964134372,2.25815516,2350.5,2350.2,0.42546]
[1725964134669,1.53310516,2350.4,2350.3,0.42545]
[1725964136264,0.42546,2350.3,2350.2,0.42546]
[1725964136869,1.53309516,2350.4,2350.3,0.42545]
[1725964138372,2.08660265,2350.4,2350.3,0.42545]
[1725964139071,1.53412693,2350.4,2350.3,0.42545]
[1725964141066,0.42547,2350.3,2350.2,0.42546]
[1725964141269,1.53415693,2350.3,2350.2,1.09052381]
[1725964141464,1.53415693,2350.3,2350.2,0.42546]
[1725964141974,1.53413693,2350.3,2350.2,1.09057338]
[1725964142668,1.10868693,2350.3,2350.2,1.09057338]
[1725964143278,1.10868693,2350.3,2350.2,0.42546]
[1725964143279,1.53413693,2350.3,2350.2,0.42546]
[1725964143462,1.53413693,2350.3,2350.2,1.09054518]
[1725964143662,1.10868693,2350.3,2350.2,5.34574518]
[1725964143867,1.10868693,2350.4,2350.3,0.42545]
[1725964144068,1.10868693,2350.4,2350.3,1.09053518]
[1725964144262,1.10868693,2350.4,2350.3,5.34493518]
[1725964145687,1.10868693,2350.4,2350.3,4.67985]
[1725964146076,1.10868693,2350.4,2350.3,1.09052207]
[1725964146777,1.10868693,2350.4,2350.3,0.42545]
[1725964149379,1.20012,2350.5,2350.4,0.42543]
[1725964150180,2.21487258,2350.6,2350.5,0.42542]
[1725964150481,2.21487258,2350.6,2350.5,4.67982]
[1725964150879,1.66392177,2350.6,2350.5,5.34482037]
[1725964151178,2.08932177,2350.6,2350.5,0.66500037]
[1725964151365,1.66392177,2350.6,2350.5,1.09042037]
[1725964151771,2.08932177,2350.6,2350.5,1.09042037]
[1725964151972,2.08932177,2350.6,2350.3,1.23]
[1725964152178,2.08932177,2350.6,2350.4,1.09046993]
[1725964152179,1.10962217,2350.5,2350.4,1.09046993]
[1725964153080,1.10962217,2350.5,2350.4,2.15450339]
[1725964153672,1.10962217,2350.6,2350.5,0.42542]
[1725964153872,1.10962217,2350.6,2350.5,6.57485993]
[1725964154287,1.10962217,2350.6,2350.5,5.90982]
[1725964154472,1.10962217,2350.6,2350.5,6.57481456]
[1725964154875,1.10962217,2350.6,2350.5,7.6388103]
[1725964157177,1.66392177,2350.7,2350.6,0.4254]
[1725964157484,1.66392177,2350.7,2350.6,7.1554903]
[1725964157685,1.10962655,2350.7,2350.6,7.5487903]
[1725964158095,1.10962655,2350.7,2350.6,7.54868173]
[1725964160586,2.21487258,2350.7,2350.6,7.54868173]
[1725964160886,2.21487258,2350.7,2350.6,2.32035451]
[1725964161486,2.21487258,2350.7,2350.6,3.38436072]
[1725964164188,2.21487258,2350.8,2350.7,0.42538]
[1725964164387,2.21487258,2350.8,2350.7,1.09036489]
[1725964164785,3.19002767,2350.9,2350.7,1.09036489]
[1725964165085,4.25338767,2350.9,2350.8,0.66495599]
[1725964165388,0.42541,2350.6,2350.4,1.65543]
[1725964165591,2.86601813,2350.5,2350.4,1.65543]
[1725964165783,2.86601813,2350.5,2350.4,4.71440497]
[1725964166885,2.46931813,2350.5,2350.4,4.71440497]
[1725964167089,2.46931813,2350.5,2350.4,3.48440497]
[1725964167279,2.46931813,2350.5,2350.4,4.71440497]
[1725964168206,2.46931813,2350.5,2350.4,1.65543]
[1725964168409,2.46931813,2350.5,2350.4,4.71440599]